bitfinex/quotes_ETHUSD_20220226
["timestamp","ask_amount","ask_price","bid_price","bid_amount"]
[1645881773244,1.80248,2776.3,2776.0,0.0046974]
[1645881774649,0.90129,2776.2,2776.0,0.00469717]
[1645881775700,0.9013,2776.1,2776.0,0.00469721]
[1645881776001,5.1343,2776.1,2776.0,0.00469721]
[1645881776203,5.0,2776.0,2775.6,0.00374239]
[1645881776402,3.933,2775.9,2775.5,0.01879166]
[1645881776599,0.1019,2775.8,2775.6,3.6]
[1645881776800,1.19750774,2775.8,2775.6,3.6]
[1645881777203,0.3,2775.7,2775.6,3.6]
[1645881778299,0.3,2775.8,2775.6,3.6]
[1645881778868,0.3,2775.9,2775.6,3.6]
[1645881779053,1.20152,2776.0,2775.6,3.6]
[1645881779253,0.90152,2776.0,2775.6,3.6]
[1645881780259,1.80278,2775.9,2775.6,3.6]
[1645881780463,5.70852,2775.9,2775.6,3.6]
[1645881780864,7.00852,2775.9,2775.6,3.6]
[1645881781066,0.90143,2775.8,2775.6,3.6]
[1645881781263,1.20143,2775.8,2775.6,3.6]
[1645881781464,0.3,2775.7,2775.6,3.6]
[1645881781663,0.3,2775.7,2775.6,3.60515495]
[1645881782499,1.20143,2775.7,2775.6,3.6]
[1645881783896,0.3,2775.7,2775.6,3.6]
[1645881784100,2.20138,2775.8,2775.6,4.80522017]
[1645881784101,0.90138,2775.8,2775.6,4.80522017]
[1645881784301,0.90131,2776.0,2775.6,4.80522017]
[1645881784302,0.90126,2776.0,2775.6,4.80522017]
[1645881784501,0.90126,2776.0,2775.6,3.6]
[1645881785303,1.20126,2776.0,2775.7,0.00500121]
[1645881786104,1.20126,2776.0,2775.6,3.6]
[1645881786559,1.20126,2776.0,2775.7,0.00483106]
[1645881787361,1.20126,2776.0,2775.6,3.6]
[1645881787559,1.20126,2776.0,2775.7,0.00483106]
[1645881787763,2.1026117,2776.0,2775.7,0.00483106]
[1645881788163,3.6056,2775.9,2775.7,0.00483106]
[1645881788362,4.9056,2775.9,2775.7,0.00483106]
[1645881788565,3.5,2775.8,2775.7,0.00483106]
[1645881788762,4.8,2775.8,2775.7,0.00483106]
[1645881789361,4.8,2775.8,2775.6,3.6]
[1645881789561,2.20138,2775.8,2775.6,3.6]
[1645881789766,1.20138,2775.8,2775.6,3.6]
[1645881789994,1.3,2775.9,2775.6,3.6]
[1645881790402,0.3,2775.9,2775.6,3.6]
[1645881790598,0.90126,2776.2,2775.6,3.60484714]
[1645881790599,1.3,2776.2,2775.6,3.60484714]
[1645881790898,0.90132,2775.9,2775.6,3.60484714]
[1645881791298,1.50132,2775.9,2775.7,1.42547861]
[1645881791498,1.50132,2775.9,2775.8,0.00484702]
[1645881791897,2.40266,2775.9,2775.8,0.00484702]
[1645881792099,2.39050946,2775.9,2775.8,0.00484702]
[1645881792297,2.39050946,2775.9,2775.6,3.6]
[1645881792700,2.39050946,2775.9,2775.7,0.00474498]
[1645881792901,1.48916946,2775.9,2775.7,0.00474498]
[1645881793765,1.48916946,2775.9,2775.7,0.00459335]
[1645881794755,1.48916946,2775.9,2775.6,3.6]
[1645881794954,1.48916946,2775.9,2775.7,0.00459335]
[1645881795358,2.39052946,2775.9,2775.7,0.00459335]
[1645881795956,2.39052946,2775.9,2775.6,3.6]
[1645881796156,2.39052946,2775.9,2775.7,0.0045308]
[1645881796557,4.19337946,2775.9,2775.7,0.0045308]
[1645881796758,3.5,2775.8,2775.7,0.0045308]
[1645881797260,5.4015218,2775.8,2775.6,3.6]
[1645881797517,4.4015218,2775.8,2775.6,3.60345621]
[1645881797713,5.4015218,2775.8,2775.6,3.60345621]
[1645881798318,3.5,2775.7,2775.6,3.59892537]
[1645881798518,3.5,2775.7,2775.6,3.6034686]
[1645881798722,4.8,2775.7,2775.6,3.6034686]
[1645881798919,3.8,2775.7,2775.6,3.6034686]
[1645881799219,4.8,2775.7,2775.6,3.6034686]
[1645881799619,4.8,2775.7,2775.6,3.59892537]
[1645881800220,1.3,2775.7,2775.6,3.59892537]
[1645881800421,2.20142,2775.7,2775.6,3.59892537]
[1645881800625,0.3,2775.7,2775.6,3.59892537]
[1645881801024,2.50132,2775.9,2775.6,3.59892537]
[1645881802154,1.50132,2775.9,2775.6,3.59892537]
[1645881802451,1.50132,2775.9,2775.6,3.60114653]
[1645881802452,2.50132,2775.9,2775.6,3.60114653]
[1645881802651,1.50132,2775.9,2775.6,3.60114653]
[1645881803257,1.50132,2775.9,2775.6,3.59892537]
[1645881803454,1.50132,2775.9,2775.6,3.60377967]
[1645881804454,1.50132,2775.9,2775.6,3.59892537]
[1645881804655,2.40268,2775.9,2775.6,3.603454]
[1645881805696,2.40268,2775.9,2775.6,3.59892537]
[1645881805900,5.90268,2775.9,2775.6,3.60344379]
[1645881806098,4.205632,2775.9,2775.6,3.60344379]
[1645881806396,0.9015,2775.7,2775.6,3.60344379]
[1645881806700,1.2015,2775.7,2775.6,3.60344379]
[1645881806895,1.2015,2775.7,2775.6,3.59892537]
[1645881807997,0.3,2775.7,2775.6,3.59892537]
[1645881808839,2.10268,2775.9,2775.6,3.59892537]
[1645881808840,3.40268,2775.9,2775.6,3.59892537]
[1645881809038,2.40268,2775.9,2775.6,3.59892537]
[1645881809238,3.40268,2775.9,2775.6,3.59892537]
[1645881809439,3.40268,2775.9,2775.6,3.60347766]
[1645881809440,2.40268,2775.9,2775.6,3.60347766]
[1645881809638,3.40268,2775.9,2775.6,3.60347766]
[1645881809839,0.90142,2775.7,2775.6,3.60347766]
[1645881810247,1.20142,2775.7,2775.6,3.60347766]
[1645881810444,1.20142,2775.7,2775.6,3.59892537]
[1645881814594,0.3,2775.7,2775.6,3.59892537]
[1645881815095,2.10268,2775.9,2775.6,3.59892537]
[1645881815096,3.10268,2775.9,2775.6,3.59892537]
[1645881815295,2.10268,2775.9,2775.6,3.59892537]
[1645881815497,3.10268,2775.9,2775.6,3.59892537]
[1645881816346,3.40268,2775.9,2775.6,3.59892537]
[1645881816745,3.40268,2775.9,2775.6,3.60347459]
[1645881817143,2.40268,2775.9,2775.6,3.60347459]
[1645881817744,2.40268,2775.9,2775.6,3.59892537]
[1645881817941,2.40268,2775.9,2775.6,3.60347459]
[1645881818847,2.40268,2775.9,2775.6,3.59892537]
[1645881819045,2.40268,2775.9,2775.6,3.60347459]
[1645881820092,2.40268,2775.9,2775.6,3.59892537]
[1645881820295,2.40268,2775.9,2775.6,3.60347455]
[1645881821297,2.40268,2775.9,2775.6,3.59892537]
[1645881821598,2.40268,2775.9,2775.6,3.60347455]
[1645881821996,4.20563,2775.9,2775.6,3.60347455]
[1645881822198,0.90147,2775.8,2775.6,3.60347455]
[1645881822397,0.90147,2775.8,2775.6,3.59892537]
[1645881822595,1.8029519,2775.8,2775.6,3.60347455]
[1645881822797,3.933,2775.7,2775.6,3.60347455]
[1645881823201,5.233,2775.7,2775.6,3.60347455]
[1645881823398,6.3351,2775.7,2775.6,3.60347455]
[1645881823598,6.3351,2775.7,2775.6,3.59892537]
[1645881823841,6.52920774,2775.7,2775.6,3.59892537]
[1645881824746,6.3351,2775.7,2775.6,2.69689248]
[1645881824945,5.70526,2775.6,2775.3,0.00374239]
[1645881825147,6.0990109,2775.5,2775.1,0.74096081]
[1645881825347,0.3,2775.4,2775.1,0.74096081]
[1645881825545,0.433,2775.3,2775.1,0.74096081]
[1645881825750,2.23651,2775.3,2775.1,0.74096081]
[1645881825945,5.73651,2775.3,2775.1,0.74096081]
[1645881826146,5.73651,2775.3,2775.1,0.72276103]
[1645881826346,3.5,2775.2,2775.1,0.72731065]
[1645881826753,5.70176,2775.2,2775.1,0.72731065]
[1645881826950,5.13476,2775.2,2775.1,0.72731065]
[1645881827152,6.13476,2775.2,2775.1,0.72276103]
[1645881829492,2.63476,2775.2,2775.1,0.72276103]
[1645881829705,6.13476,2775.2,2775.1,0.72276103]
[1645881829895,6.13476,2775.2,2775.0,0.00455308]
[1645881829896,7.8037634,2775.1,2775.0,0.00455308]
[1645881830098,7.8037634,2775.1,2774.2,0.00374239]
[1645881830099,5.2,2775.0,2774.2,0.00374239]
[1645881830301,15.92493,2774.9,2773.6,0.00374239]
[1645881830510,15.92493,2774.9,2773.1,15.3794]
[1645881830511,15.92493,2774.9,2773.4,0.00374239]
[1645881830701,0.3625,2774.5,2773.3,0.3489082]
[1645881830900,0.90198,2774.3,2773.3,0.3489082]
[1645881831379,0.90195,2774.2,2773.3,0.3489082]
[1645881831777,0.90195,2774.2,2773.3,0.05]
[1645881832276,1.8040171,2774.1,2773.3,0.05]
[1645881832478,0.90203,2773.9,2773.4,1.19598131]
[1645881832677,1.8040171,2774.1,2773.4,1.19598131]
[1645881832678,0.3,2774.0,2773.4,1.19598131]
[1645881833080,2.10407,2774.1,2773.4,1.19598131]
[1645881833481,0.3,2774.1,2773.4,1.19598131]
[1645881833679,0.90199,2774.0,2773.4,1.19598131]
[1645881833980,1.20199,2774.0,2773.4,0.1442]
[1645881834178,1.20199,2774.0,2773.3,0.05]
[1645881834779,0.90203,2773.9,2773.6,1.08608699]
[1645881835001,1.20199,2774.0,2773.6,1.08608699]
[1645881835205,0.3,2774.0,2773.6,1.08608699]
[1645881835403,0.3,2774.1,2773.6,1.08608699]
[1645881835604,0.8431095,2774.2,2773.6,1.08092918]
[1645881836004,0.8431095,2774.2,2773.7,0.00515772]
[1645881836604,0.8431095,2774.2,2774.1,1.31082511]
[1645881836605,0.5431095,2774.2,2774.1,1.31082511]
[1645881836805,1.80348,2775.0,2774.1,1.31082511]
[1645881837208,0.00515575,2774.8,2774.1,1.31082511]
[1645881837406,0.00515575,2774.8,2774.6,1.08273604]
[1645881837806,0.00515575,2774.8,2773.9,0.00372941]
[1645881838005,0.00515575,2774.8,2773.9,0.36622941]
[1645881838205,2.10348,2775.0,2773.9,0.36622941]
[1645881838405,0.90652188,2774.8,2774.5,0.00482254]
[1645881838606,0.90179,2774.7,2774.5,0.00482254]
[1645881839344,2.70549,2774.7,2773.9,1.22369467]
[1645881839543,0.90186,2774.6,2774.5,0.00482245]
[1645881839748,1.20186,2774.6,2774.5,0.00482245]
[1645881840550,0.90184,2774.5,2773.9,1.21279985]
[1645881840949,0.90184,2774.5,2774.4,0.0048225]
[1645881841550,1.20184,2774.5,2774.4,0.0048225]
[1645881841751,2.4037,2774.5,2773.5,0.25]
[1645881841950,5.9037,2774.5,2774.3,0.004845]
[1645881842151,2.4037,2774.5,2774.3,0.004845]
[1645881842801,2.4037,2774.5,2774.0,1.42460073]
[1645881842999,2.4037,2774.5,2773.4,1.3778]
[1645881843199,3.30559,2774.5,2774.3,0.00241822]
[1645881843602,4.30559,2774.5,2774.3,0.00241822]
[1645881843998,4.30559,2774.5,2773.4,1.7403]
[1645881844201,4.30559,2774.5,2773.8,1.28002064]
[1645881844501,3.5,2774.4,2774.3,0.00241822]
[1645881844701,1.0,2774.4,2774.3,0.00241822]
[1645881844902,4.5,2774.4,2774.3,0.00241822]
[1645881845101,4.73859,2774.5,2774.3,0.00241822]
[1645881845301,0.90193,2774.2,2773.4,1.474]
[1645881845502,1.80385,2774.2,2773.8,0.02029083]
[1645881845703,2.40385,2774.2,2773.8,0.02029083]
[1645881846555,3.30581,2774.2,2773.4,0.25]
[1645881846755,4.30581,2774.2,2773.9,0.00494208]
[1645881847759,4.30581,2774.2,2773.3,0.05371172]
[1645881847961,4.30581,2774.2,2773.9,0.00494204]
[1645881848158,3.40385,2774.2,2773.9,0.00494204]
[1645881848559,2.40385,2774.2,2773.9,0.00494204]
[1645881848758,3.40385,2774.2,2773.9,0.00494204]
[1645881848961,2.76635,2774.2,2773.5,0.00371172]
[1645881849159,3.40385,2774.2,2773.9,0.00494204]
[1645881849359,2.40385,2774.2,2773.9,0.00494204]
[1645881849562,4.30581,2774.2,2773.9,0.00494204]
[1645881849994,4.30581,2774.2,2773.5,0.02348283]
[1645881850200,4.30581,2774.2,2773.7,1.39697647]
[1645881850399,4.30581,2774.2,2773.9,0.00484389]
[1645881850400,2.50192,2774.2,2773.9,0.00484389]
[1645881850599,1.6,2774.2,2773.9,0.00484389]
[1645881850800,0.3,2774.2,2773.9,0.00484389]
[1645881850998,6.30368,2774.5,2773.9,0.00484389]
[1645881850999,0.3,2774.3,2773.9,0.00484389]
[1645881851200,6.00188,2774.5,2773.8,0.00371172]
[1645881851401,6.00188,2774.5,2773.5,0.00371172]
[1645881851600,0.90192,2774.2,2773.9,0.00484389]
[1645881851801,1.50192,2774.2,2773.9,0.00484389]
[1645881852601,1.50192,2774.2,2773.7,1.06159391]
[1645881852803,1.50192,2774.2,2773.9,0.00484389]
[1645881853851,1.50192,2774.2,2773.9,0.00485052]
[1645881854052,3.30584,2774.2,2773.9,0.00485052]
[1645881854451,4.30584,2774.2,2773.9,0.00485052]
[1645881854952,4.30584,2774.2,2773.5,0.00371172]
[1645881855152,4.30584,2774.2,2773.9,0.00485052]
[1645881856153,4.30584,2774.2,2773.5,0.00371172]
[1645881856154,3.40387,2774.2,2773.5,0.00371172]
[1645881856353,2.40387,2774.2,2773.9,0.00485052]
[1645881856554,3.40387,2774.2,2773.9,0.00485052]
[1645881856759,2.40387,2774.2,2773.9,0.00485052]
[1645881856955,2.50192,2774.2,2774.0,1.02808764]
[1645881857158,1.3348337,2774.7,2774.0,1.02808764]
[1645881857159,0.00484896,2774.8,2774.0,1.02808764]
[1645881857360,0.9017,2775.0,2774.6,1.44096492]
[1645881857613,8.7242295,2775.7,2774.3,0.3625]
[1645881857614,11.77098633,2775.7,2774.3,0.3625]
[1645881857815,11.77098633,2775.7,2774.4,0.00371172]
[1645881857816,0.00484856,2774.8,2774.4,0.00371172]
[1645881858019,0.00484856,2774.8,2774.2,0.14781172]
[1645881858218,0.00484856,2774.8,2774.2,0.1441]
[1645881858418,3.8625,2775.5,2774.2,0.1441]
[1645881858419,4.76898633,2775.5,2774.2,0.1441]
[1645881858620,0.90159,2775.4,2775.0,1.21048853]
[1645881859418,0.90159,2775.3,2775.0,1.21048853]
[1645881859820,0.3,2775.2,2775.0,1.21048853]
[1645881860019,1.80319,2775.3,2775.0,1.21048853]
[1645881860020,0.00484868,2775.3,2775.0,1.21048853]
[1645881860825,0.90148,2775.6,2775.0,1.21048853]
[1645881861020,0.90648633,2775.8,2775.0,1.21048853]
[1645881861261,0.3,2775.8,2775.0,1.21048853]
[1645881861651,1.20648633,2775.9,2775.0,1.20958328]
[1645881861852,0.3,2775.9,2775.0,1.20958328]
[1645881862051,3.40281,2776.0,2775.0,1.20958328]
[1645881862253,1.80281,2776.0,2775.5,1.17593342]
[1645881862755,2.80323,2776.2,2775.5,1.17593342]
[1645881862756,1.80785633,2776.2,2775.5,1.17593342]
[1645881862953,0.90648633,2776.2,2775.5,1.17593342]
[1645881863553,1.20648633,2776.2,2775.5,1.17593342]
[1645881864456,2.10779633,2776.2,2775.0,9.922]
[1645881864656,0.90136,2776.0,2775.0,9.922]
[1645881864855,0.90136,2776.0,2775.0,3.015]
[1645881864856,0.90637607,2776.0,2775.0,3.015]
[1645881865121,1.20637607,2776.0,2775.0,3.015]
[1645881865313,1.20637607,2776.0,2774.8,12.9147]
[1645881865613,1.20637607,2776.0,2774.9,1.50134923]
[1645881865815,1.20136,2776.0,2774.9,1.50134923]
[1645881866015,0.00501645,2775.5,2774.9,1.50134923]
[1645881866418,0.00501645,2775.5,2774.8,12.6647]
[1645881866616,0.00501645,2775.5,2774.9,1.50153323]
[1645881866913,0.90137,2775.9,2774.9,1.50153323]
[1645881867114,0.90137,2775.9,2775.4,1.42817769]
[1645881867314,1.20137,2775.9,2775.4,1.42817769]
[1645881868514,0.00484086,2775.8,2775.4,1.42817769]
[1645881868947,0.00484086,2775.8,2774.8,12.6647]
[1645881869147,0.00484086,2775.8,2774.9,1.5011195]
[1645881869350,1.20137,2775.9,2774.9,1.5011195]
[1645881869546,1.20137,2775.9,2774.8,12.3022]
[1645881869747,0.00484113,2775.4,2774.8,12.6647]
[1645881870349,0.00484113,2775.4,2774.8,12.3022]
[1645881870550,1.8029,2775.7,2775.2,1.35767858]
[1645881870956,0.90145,2775.7,2775.2,1.35767858]
[1645881871150,1.20135,2775.9,2775.2,1.35767858]
[1645881871951,0.00485278,2775.7,2775.2,1.35767858]
[1645881872599,0.00485278,2775.7,2775.2,4.85767858]
[1645881873002,1.20135,2775.9,2775.2,4.85767858]
[1645881873200,0.00485286,2775.6,2775.2,4.85767858]
[1645881874204,1.20135,2775.9,2775.2,4.85767858]
[1645881874403,0.0048529,2775.5,2775.2,4.85767858]
[1645881875007,5.29e-05,2775.5,2775.3,11.4525]
[1645881875207,5.29e-05,2775.5,2775.4,11.4525]
[1645881875407,3.5,2776.6,2775.5,0.0008]
[1645881875608,5.77478,2776.7,2775.5,0.0008]
[1645881876453,0.90116,2776.6,2775.5,0.0008]
[1645881876655,0.3,2776.5,2775.5,0.0008]
[1645881876854,0.00266042,2776.2,2775.5,0.0008]
[1645881877654,0.00266042,2776.2,2775.8,1.12272626]
[1645881877855,0.3,2776.5,2775.8,1.12272626]
[1645881878054,0.00266042,2776.0,2775.8,1.12272626]
[1645881879057,0.3,2776.5,2775.8,1.12272626]
[1645881879257,0.00516406,2776.0,2775.8,1.12272626]
[1645881879555,0.00516406,2776.0,2775.5,0.0008]
[1645881880218,0.90123,2776.4,2775.5,0.0008]
[1645881880415,0.0051642,2775.9,2775.7,1.14869407]
[1645881880614,0.0051642,2775.9,2775.5,0.0008]
[1645881881424,0.90123,2776.4,2775.5,0.0008]
[1645881881615,0.90123,2776.4,2775.6,1.02321502]
[1645881881815,0.00516424,2775.8,2775.6,1.02321502]
[1645881882016,0.00516424,2775.8,2775.5,0.0008]
[1645881882617,0.90123,2776.4,2775.5,0.0008]
[1645881882818,0.00516429,2775.8,2775.5,0.0008]
[1645881883420,0.00516429,2775.8,2775.6,1.03074777]
[1645881883619,0.00516429,2775.8,2775.5,0.0008]
[1645881883860,0.90123,2776.4,2775.5,0.0008]
[1645881884063,0.00516424,2775.8,2775.5,0.0008]
[1645881884660,0.00516424,2775.8,2775.7,1.40796567]
[1645881885063,1.50123,2776.4,2775.7,1.40796567]
[1645881885265,0.0051642,2775.9,2775.7,1.40796567]
[1645881886264,1.50123,2776.4,2775.7,1.40796567]
[1645881886466,0.00516415,2775.9,2775.5,3.5008]
[1645881886673,0.00516415,2775.9,2775.7,0.3625]
[1645881887504,0.1021,2776.4,2776.0,1.16796683]
[1645881888508,0.3,2776.5,2776.0,1.16796683]
[1645881888709,1.80576855,2776.9,2776.1,7.5]
[1645881888912,7.45,2777.9,2776.6,1.04967339]
[1645881888913,0.00349465,2777.4,2776.6,1.04967339]
[1645881889213,0.00349465,2777.6,2776.7,0.3625]
[1645881889409,4.89116,2778.1,2776.7,0.3625]
[1645881889410,0.00349465,2777.8,2776.7,0.3625]
[1645881889611,0.00349465,2778.0,2776.9,11.45243621]
[1645881889811,0.00349465,2778.2,2777.0,11.45243621]
[1645881890010,3.86599465,2778.5,2777.0,11.59633621]
[1645881890213,3.86599465,2778.5,2777.0,12.49676621]
[1645881890214,0.00349465,2778.5,2777.0,12.49676621]
[1645881890414,0.00349465,2778.6,2777.3,11.45243621]
[1645881891263,0.00349465,2778.6,2777.7,1.15990219]
[1645881892457,0.00498787,2778.3,2777.7,1.15990219]
[1645881892855,0.00498787,2778.3,2777.3,14.1141]
[1645881893255,0.00498787,2778.3,2777.3,3.0241]
[1645881893456,0.00349465,2778.6,2777.3,3.0241]
[1645881893656,0.00498817,2777.9,2777.3,3.0241]
[1645881894057,0.00498817,2777.9,2777.7,1.02736105]
[1645881894658,0.00349465,2778.6,2777.7,1.02736105]
[1645881894859,0.00484398,2777.9,2777.7,1.02736105]
[1645881895309,0.00484398,2777.9,2777.3,14.4766]
[1645881895510,0.00484398,2777.9,2777.3,3.0241]
[1645881895709,0.00484398,2777.9,2777.3,2.8802]
[1645881895909,3.86599465,2778.4,2777.3,2.8802]
[1645881896113,0.00484414,2777.7,2777.3,2.8802]
[1645881896910,0.00484414,2777.7,2777.3,6.3802]
[1645881897114,0.66599465,2778.1,2777.3,3.5]
[1645881897312,0.00484422,2777.6,2777.3,3.5]
[1645881898309,4.16599465,2778.1,2777.3,3.5]
[1645881898509,0.0048506,2777.6,2777.3,3.5]
[1645881899556,2.1641,2777.9,2777.3,3.5]
[1645881899759,0.0048506,2777.6,2777.3,3.5]
[1645881899958,3.83026379,2777.8,2777.3,3.5]
[1645881900155,3.82676914,2777.8,2777.3,3.5]
[1645881900555,0.90092,2777.5,2777.3,3.5]
[1645881900758,3.00293,2777.5,2777.3,3.5]
[1645881901257,4.00293,2777.5,2777.3,3.5]
[1645881901456,3.00293,2777.5,2777.3,1.77546561]
[1645881901656,4.9039044,2777.5,2777.3,1.77546561]
[1645881901855,5.2039044,2777.5,2777.3,1.77546561]
[1645881902506,4.30293,2777.5,2777.3,0.80445299]
[1645881902711,4.00293,2777.5,2777.3,0.80445299]
[1645881902912,4.90509822,2777.5,2777.3,0.80445299]
[1645881903117,3.06250166,2777.5,2777.3,0.80445299]
[1645881903312,0.90216822,2777.4,2777.3,0.80445299]
[1645881903714,2.16033344,2777.5,2777.3,0.80445299]
[1645881903715,2.36250166,2777.5,2777.3,0.80445299]
[1645881903913,1.55941344,2777.5,2777.3,0.80445299]
[1645881904114,3.40315822,2777.6,2777.3,0.80445299]
[1645881904313,2.10315822,2777.6,2777.3,0.80445299]
[1645881904514,3.10315822,2777.6,2777.3,0.80445299]
[1645881904714,0.90216822,2777.5,2777.3,0.80445299]
[1645881905214,1.20216822,2777.4,2777.3,0.80445299]
[1645881907465,0.3,2777.4,2777.3,0.80445299]
[1645881907663,0.3,2777.5,2777.3,0.80445299]
[1645881907863,7.05424233,2777.6,2777.3,0.80445299]
[1645881908064,3.55424233,2777.6,2777.3,0.80445299]
[1645881908265,7.05424233,2777.6,2777.3,0.80445299]
[1645881908463,3.55424233,2777.6,2777.3,0.80445299]
[1645881908863,3.91674233,2777.6,2776.5,0.1439]
[1645881909065,0.9049861,2777.3,2776.5,0.1439]
[1645881909267,1.2049861,2777.3,2776.5,0.1439]
[1645881909465,3.8625,2777.2,2776.5,0.1439]
[1645881909669,1.2674861,2777.0,2776.5,0.1439]
[1645881909866,1.2674861,2777.0,2776.2,0.01938592]
[1645881909867,0.3625,2776.8,2776.2,0.01938592]
[1645881910138,0.90125,2776.5,2776.2,0.01938592]
[1645881910334,3.5,2776.4,2775.7,0.25]
[1645881910534,0.9584,2776.4,2775.9,0.01938407]
[1645881910732,4.4584,2776.4,2775.9,0.01938407]
[1645881911133,5.4584,2776.4,2775.9,0.01938407]
[1645881911336,6.35968,2776.4,2775.9,0.01938407]
[1645881911536,2.85968,2776.4,2775.5,0.0008]
[1645881911737,2.85968,2776.4,2775.7,0.00484603]
[1645881911738,5.95968,2776.4,2775.7,0.00484603]
[1645881911936,3.45968,2776.4,2775.7,0.00484603]
[1645881912134,6.95968,2776.4,2775.7,0.00484603]
[1645881912636,6.95968,2776.4,2775.5,0.0008]
[1645881913035,6.95968,2776.4,2775.7,0.00485241]
[1645881914857,8.2271661,2776.4,2775.7,0.00485241]
[1645881915058,2.16514,2776.3,2775.5,0.0008]
[1645881915260,4.7674861,2776.2,2775.5,0.0008]
[1645881915463,4.7674861,2776.2,2775.7,0.00485241]
[1645881915464,1.3379861,2776.1,2775.7,0.00485241]
[1645881915659,3.5,2776.0,2775.7,0.00485241]
[1645881915859,4.8379861,2776.0,2775.7,0.00485241]
[1645881916059,2.7081061,2775.9,2775.7,0.00485241]
[1645881916257,2.7081061,2775.9,2775.5,0.0008]
[1645881916258,4.8379861,2775.8,2775.5,0.0008]
[1645881916459,1.0,2775.7,2775.5,0.0008]
[1645881916661,4.40156,2775.6,2775.5,0.0008]
[1645881916860,5.70156,2775.6,2775.5,0.0008]
[1645881917063,1.3,2775.6,2775.5,0.0008]
[1645881917262,0.6,2775.7,2775.5,0.0008]
[1645881917716,8.84541348,2775.9,2775.5,0.0008]
[1645881918118,8.54541348,2775.9,2775.5,0.0008]
[1645881918915,8.54541348,2775.9,2775.6,0.00485198]
[1645881919519,1.83761348,2775.9,2775.6,0.00485198]
[1645881919716,0.83761348,2775.9,2775.6,0.00485198]
[1645881919918,0.83761348,2775.9,2775.5,0.8008]
[1645881920117,0.83761348,2775.9,2775.6,0.00485198]
[1645881920519,1.73906348,2775.9,2775.6,0.00485198]
[1645881920717,2.03906348,2775.9,2775.6,0.00485198]
[1645881921123,2.03906348,2775.9,2775.5,0.8008]
[1645881921366,2.03906348,2775.9,2775.6,0.00485198]
[1645881922264,2.03906348,2775.9,2775.5,0.8008]
[1645881922566,2.03906348,2775.9,2775.6,0.00485198]
[1645881923172,1.13761348,2775.9,2775.6,0.00485198]
[1645881923367,0.83761348,2775.9,2775.6,0.00485198]
[1645881923565,0.83761348,2775.9,2775.5,0.8008]
[1645881923767,0.83761348,2775.9,2775.6,0.00485197]
[1645881924667,0.83761348,2775.9,2775.5,0.79639414]
[1645881924867,0.83761348,2775.9,2775.6,0.00485197]
[1645881925910,0.83761348,2775.9,2775.5,0.79639414]
[1645881926110,0.83761348,2775.9,2775.6,0.00485197]
[1645881927114,0.83761348,2775.9,2775.5,0.79639414]
[1645881927311,0.83761348,2775.9,2775.6,0.0048618]
[1645881927312,0.90145,2775.8,2775.6,0.0048618]
[1645881927514,4.40145,2775.8,2775.6,0.0048618]
[1645881927914,5.40145,2775.8,2775.6,0.0048618]
[1645881928321,5.40145,2775.8,2775.5,0.79639414]
[1645881928516,2.80297,2775.8,2775.6,0.00486184]
[1645881928767,0.3,2775.7,2775.6,0.00486184]
[1645881929558,0.3,2775.7,2775.5,0.79639414]
[1645881929758,0.3,2775.7,2775.5,0.80125602]
[1645881930664,0.3,2775.7,2775.5,0.79639414]
[1645881931063,0.3,2775.7,2775.5,0.80125545]
[1645881931666,0.3,2775.8,2775.5,0.80125545]
[1645881931866,1.73905348,2775.9,2775.5,0.79639414]
[1645881932166,1.13761348,2775.9,2775.5,0.80125545]
[1645881932366,0.83761348,2775.9,2775.5,0.80125545]
[1645881933111,0.83761348,2775.9,2775.5,0.79639414]
[1645881933413,0.83761348,2775.9,2775.6,0.00486123]
[1645881933813,1.80292,2775.8,2775.6,0.00486123]
[1645881934011,0.3,2775.7,2775.6,0.00486123]
[1645881934314,0.3,2775.7,2775.5,0.79639414]
[1645881934712,0.3,2775.7,2775.6,0.00486128]
[1645881935318,3.8,2775.7,2775.6,0.00486128]
[1645881935517,3.8,2775.7,2775.5,0.79639414]
[1645881935719,4.8,2775.7,2775.5,0.79639414]
[1645881935920,6.60317,2775.7,2775.5,0.80125546]
[1645881936117,6.90317,2775.7,2775.5,0.80125546]
[1645881936364,3.40317,2775.7,2775.5,0.80125546]
[1645881936764,3.40317,2775.7,2775.5,0.79639414]
[1645881936963,3.40317,2775.7,2775.5,0.8012555]
[1645881937162,2.40317,2775.7,2775.5,0.8012555]
[1645881937363,3.40317,2775.7,2775.5,0.8012555]
[1645881937565,2.40317,2775.7,2775.5,0.8012555]
[1645881937964,2.40317,2775.7,2775.5,0.79639414]
[1645881938167,2.40317,2775.7,2775.5,0.8012555]
[1645881939167,2.40317,2775.7,2775.5,0.79639414]
[1645881939366,2.40317,2775.7,2775.5,0.8012555]
[1645881940410,2.40317,2775.7,2775.5,0.79639414]
[1645881940611,5.90317,2775.7,2775.5,0.8012555]
[1645881940813,6.90317,2775.7,2775.5,0.8012555]
[1645881941415,6.90317,2775.7,2775.5,0.79639414]
[1645881941613,5.30322,2775.6,2775.5,0.79639414]
[1645881941812,6.60322,2775.6,2775.5,0.8012555]
[1645881942716,6.60322,2775.6,2775.5,0.79639414]
[1645881943117,3.10322,2775.6,2775.5,0.79639414]
[1645881943316,2.10322,2775.6,2775.5,0.79639414]
[1645881943517,3.10322,2775.6,2775.5,0.79639414]
[1645881943781,2.10322,2775.6,2775.5,0.79639414]
[1645881943972,3.10322,2775.6,2775.5,0.79639414]
[1645881944571,3.10322,2775.6,2775.5,2.04302846]
[1645881944572,1.3,2775.6,2775.5,2.04302846]
[1645881944774,1.8030595,2776.0,2775.5,2.04302846]
[1645881944775,1.33425,2776.5,2775.5,0.79639414]
[1645881944974,3.1965,2776.6,2775.5,0.79639414]
[1645881945177,3.1965,2776.6,2775.5,1.15889414]
[1645881945577,3.1965,2776.6,2775.7,0.00486119]
[1645881946384,3.1965,2776.6,2775.8,1.35535915]
[1645881946578,3.1965,2776.6,2775.5,1.15889414]
[1645881946579,0.53965308,2776.7,2775.7,0.00486139]
[1645881946779,1.20215308,2776.7,2775.7,0.00486139]
[1645881946981,4.70215308,2776.7,2775.7,0.00486139]
[1645881947182,0.3625,2776.5,2775.7,0.00486139]